fUST/lending_fUST_20240704
["ID","MTS","AMOUNT","RATE_DAILY","PERIOD"]
[331091404,1720075847813,-500.0,0.00015588,2]
[331091405,1720075847822,-500.0,0.00015588,2]
[331091406,1720075847832,-500.0,0.00015588,2]
[331091407,1720075847842,-500.0,0.00015588,2]
[331091408,1720075847953,-500.0,0.00015588,2]
[331091409,1720075847963,-500.0,0.00015588,2]
[331091410,1720075847973,-500.0,0.00015588,2]
[331091411,1720075847982,-500.0,0.00015588,2]
[331091412,1720075847991,-500.0,0.00015588,2]
[331091413,1720075848001,-500.0,0.00015589,2]
[331091414,1720075848010,-7191.66,0.00015589,2]
[331091415,1720075848020,-500.0,0.00015589,2]
[331091416,1720075848030,-4323.21,0.00015591,2]
[331091417,1720075848039,-743.73,0.00015591,2]
[331091418,1720075848048,-500.0,0.00015591,2]
[331091419,1720075848058,-673.66,0.00015591,2]
[331091420,1720075848067,-4300.51,0.00015591,2]
[331091421,1720075848076,-2180.36,0.00015591,2]
[331091422,1720075848086,-151.34202917,0.000156,2]
[331091423,1720075848096,-154.85288975,0.00015616,2]
[331091424,1720075848105,-286.750402,0.00015616,2]
[331091425,1720075848114,-158.488898,0.00015616,2]
[331091426,1720075848126,-151.0,0.00015616,2]
[331091427,1720075848135,-151.0,0.00015616,2]
[331091428,1720075848144,-151.0,0.00015616,2]
[331091429,1720075848153,-194.703043,0.00015616,2]
[331091430,1720075848163,-3542.56208964,0.00015616,2]
[331091431,1720075848172,-3542.56208964,0.00015616,2]
[331091432,1720075848181,-3542.56208964,0.00015616,2]
[331091433,1720075848190,-3542.56208964,0.00015616,2]
[331091434,1720075848199,-3542.56208964,0.00015616,2]
[331091435,1720075848208,-3542.56208964,0.00015616,2]
[331091436,1720075848217,-3542.56208964,0.00015616,2]
[331091437,1720075848226,-3542.56208964,0.00015616,2]
[331091438,1720075848236,-3542.56208964,0.00015616,2]
[331091439,1720075848245,-3542.56208964,0.00015616,2]
[331091440,1720075848254,-3542.56208964,0.00015616,2]
[331091441,1720075848263,-3542.56208964,0.00015616,2]
[331091442,1720075848272,-3542.56208964,0.00015616,2]
[331091443,1720075848281,-3542.56208964,0.00015616,2]
[331091444,1720075848290,-3542.56208964,0.00015616,2]
[331091445,1720075848299,-3542.56208964,0.00015616,2]
[331091446,1720075848309,-3542.56208964,0.00015616,2]
[331091447,1720075848318,-3542.56208964,0.00015616,2]
[331091448,1720075848328,-3542.56208964,0.00015616,2]
[331091449,1720075848337,-3542.56208964,0.00015616,2]
[331091450,1720075848346,-3542.56208964,0.00015616,2]
[331091451,1720075848356,-3542.56208964,0.00015616,2]
[331091452,1720075848365,-3542.56208964,0.00015616,2]
[331091453,1720075848374,-3542.56208964,0.00015616,2]
[331091454,1720075848383,-3542.56208964,0.00015616,2]
[331091455,1720075848393,-3542.56208964,0.00015616,2]
[331091456,1720075848402,-3542.56208964,0.00015616,2]
[331091457,1720075848411,-3542.56208964,0.00015616,2]
[331091458,1720075848420,-3542.56208964,0.00015616,2]
[331091459,1720075848429,-3542.56208964,0.00015616,2]
[331091460,1720075848439,-3542.56208964,0.00015616,2]
[331091461,1720075848448,-3542.56208964,0.00015616,2]
[331091462,1720075848457,-3542.56208964,0.00015616,2]
[331091463,1720075848466,-3542.56208964,0.00015616,2]
[331091464,1720075848474,-3542.56208964,0.00015616,2]
[331091465,1720075848483,-3542.56208964,0.00015616,2]
[331091466,1720075848492,-3542.56208964,0.00015616,2]
[331091467,1720075848500,-3542.56208964,0.00015616,2]
[331091468,1720075848509,-3542.56208964,0.00015616,2]
[331091469,1720075848518,-3542.56208964,0.00015616,2]
[331091470,1720075848527,-3542.56208964,0.00015616,2]
[331091471,1720075848536,-3542.56208964,0.00015616,2]
[331091472,1720075848545,-3542.56208964,0.00015616,2]
[331091473,1720075848554,-3471.71084785,0.00015616,2]
[331091474,1720075848562,-3471.71084785,0.00015616,2]
[331091475,1720075848571,-3471.71084785,0.00015616,2]
[331091476,1720075848583,-3471.71084785,0.00015616,2]
[331091477,1720075848592,-3471.71084785,0.00015616,2]
[331091478,1720075848603,-3471.71084785,0.00015616,2]
[331091479,1720075848612,-3471.71084785,0.00015616,2]
[331091480,1720075848622,-3471.71084785,0.00015616,2]
[331091481,1720075848631,-3471.71084785,0.00015616,2]
[331091482,1720075848644,-3471.71084785,0.00015616,2]
[331091483,1720075848655,-3471.71084785,0.00015616,2]
[331091484,1720075848665,-3471.71084785,0.00015616,2]
[331091485,1720075848674,-3471.71084785,0.00015616,2]
[331091486,1720075848683,-3471.71084785,0.00015616,2]
[331091487,1720075848692,-3471.71084785,0.00015616,2]
[331091488,1720075848701,-3471.71084785,0.00015616,2]
[331091489,1720075848711,-3471.71084785,0.00015616,2]
[331091490,1720075848719,-3471.71084785,0.00015616,2]
[331091491,1720075848728,-3471.71084785,0.00015616,2]
[331091492,1720075848737,-3471.71084785,0.00015616,2]
[331091493,1720075848747,-3471.71084785,0.00015616,2]
[331091494,1720075848756,-3471.71084785,0.00015616,2]
[331091495,1720075848765,-3471.71084785,0.00015616,2]
[331091496,1720075848774,-3471.71084785,0.00015616,2]
[331091497,1720075848783,-3476.05048641,0.00015616,2]
[331091498,1720075848793,-3476.05048641,0.00015616,2]
[331091499,1720075848802,-3476.05048641,0.00015616,2]
[331091500,1720075848820,-3476.05048641,0.00015616,2]
[331091501,1720075848832,-3476.05048641,0.00015616,2]
[331091502,1720075848842,-3476.05048641,0.00015616,2]
[331091503,1720075848853,-3476.05048641,0.00015616,2]
[331091504,1720075848863,-3476.05048641,0.00015616,2]
[331091505,1720075848873,-3476.05048641,0.00015616,2]
[331091506,1720075848883,-3476.05048641,0.00015616,2]
[331091507,1720075848892,-3476.05048641,0.00015616,2]
[331091508,1720075848902,-3476.05048641,0.00015616,2]
[331091509,1720075848912,-3476.05048641,0.00015616,2]
[331091510,1720075848921,-3476.05048641,0.00015616,2]
[331091511,1720075848931,-3476.05048641,0.00015616,2]
[331091512,1720075848941,-3476.05048641,0.00015616,2]
[331091513,1720075848951,-3476.05048641,0.00015616,2]
[331091514,1720075848960,-3476.05048641,0.00015616,2]
[331091515,1720075848970,-3476.05048641,0.00015616,2]
[331091516,1720075848980,-3476.05048641,0.00015616,2]
[331091517,1720075848990,-3862.27831817,0.00015616,2]
[331091518,1720075849000,-151.0,0.00015616,2]
[331091519,1720075849010,-160.013851,0.00015616,2]
[331091520,1720075849019,-151.0,0.00015616,2]
[331091521,1720075849030,-151.0,0.00015616,2]
[331091522,1720075849039,-151.0,0.00015616,2]
[331091523,1720075849049,-151.0,0.00015616,2]
[331091524,1720075849059,-218.240125,0.00015616,2]
[331091525,1720075849069,-151.0,0.00015616,2]
[331091526,1720075849079,-151.0,0.00015616,2]
[331091527,1720075849089,-151.0,0.00015616,2]
[331091528,1720075849099,-151.0,0.00015616,2]
[331091529,1720075849110,-151.0,0.00015616,2]
[331091530,1720075849120,-151.0,0.00015616,2]
[331091531,1720075849131,-151.0,0.00015616,2]
[331091532,1720075849140,-154.515168,0.00015616,2]
[331091533,1720075849151,-151.0,0.00015616,2]
[331091534,1720075849162,-151.0,0.00015616,2]
[331091535,1720075849172,-162.352123,0.00015616,2]
[331091536,1720075849181,-151.0,0.00015616,2]
[331091537,1720075849191,-151.0,0.00015616,2]
[331091538,1720075849200,-151.0,0.00015616,2]
[331091539,1720075849210,-151.0,0.00015616,2]
[331091540,1720075849219,-151.0,0.00015616,2]
[331091541,1720075849229,-151.0,0.00015616,2]
[331091542,1720075849238,-151.84498,0.00015616,2]
[331091543,1720075849248,-150.0,0.00015655,2]
[331091544,1720075849259,-150.0,0.00015655,2]
[331091545,1720075849268,-150.0,0.00015725,2]
[331091546,1720075849278,-1576.4,0.00015859,2]
[331091547,1720075849288,-9462.23,0.00015859,2]
[331091548,1720075849297,-1131.45,0.00015859,2]
[331091549,1720075849307,-500.0,0.00015859,2]
[331091550,1720075849316,-6867.69402829,0.0001586,2]
[331091551,1720075849325,-500.12268997,0.0001586,2]
[331091552,1720075849336,-500.0,0.0001586,2]
[331091553,1720075849347,-500.0,0.0001586,2]
[331091554,1720075849357,-1372.37,0.0001586,2]
[331091555,1720075849366,-1648.66,0.0001586,2]
[331091556,1720075849376,-863.64,0.0001586,2]
[331091557,1720075849385,-723.39,0.0001586,2]
[331091558,1720075849395,-3177.57,0.0001586,2]
[331091559,1720075849404,-500.0,0.0001586,2]
[331091560,1720075849414,-500.0,0.0001586,2]
[331091561,1720075849424,-923.06,0.0001586,2]
[331091562,1720075849433,-344.29695865,0.0001586,2]
[331091563,1720075849442,-695.77,0.0001586,2]
[331091564,1720075849450,-500.0,0.0001586,2]
[331091565,1720075849460,-3260.08,0.0001586,2]
[331091566,1720075849469,-764.17,0.00015861,2]
[331091567,1720075849478,-500.0,0.00015861,2]
[331091568,1720075849487,-500.0,0.00015861,2]
[331091569,1720075849496,-1101.13,0.00015861,2]
[331091570,1720075849504,-593.26,0.00015861,2]
[331091571,1720075849513,-860.22,0.00015861,2]
[331091572,1720075849522,-493.22728195,0.00015861,2]
[331091573,1720075849532,-160.66430927,0.00015861,2]
[331091574,1720075849541,-532.02,0.00015861,2]
[331091575,1720075849550,-500.0,0.00015861,2]
[331091576,1720075849559,-195.22022711,0.00015861,2]
[331091577,1720075849569,-500.0,0.00015861,2]
[331091578,1720075849578,-500.0,0.00015861,2]
[331091579,1720075849590,-500.0,0.00015861,2]
[331091580,1720075849600,-5711.1,0.00015861,2]
[331091581,1720075849609,-537.46,0.00015861,2]
[331091582,1720075849618,-500.0,0.00015861,2]
[331091583,1720075849627,-637.5,0.00015861,2]
[331091584,1720075849635,-500.0,0.00015861,2]
[331091585,1720075849645,-626.84,0.00015861,2]
[331091586,1720075849654,-291.75343112,0.00015861,2]
[331091587,1720075849664,-1508.67,0.00015861,2]
[331091588,1720075849673,-571.35,0.00015861,2]
[331091589,1720075849683,-500.0,0.00015861,2]
[331091590,1720075849692,-2835.11,0.00015861,2]
[331091591,1720075849701,-312.5637399,0.00015861,2]
[331091592,1720075849710,-500.0,0.00015862,2]
[331091593,1720075849719,-500.0,0.00015862,2]
[331091594,1720075849729,-500.0,0.00015862,2]
[331091595,1720075849739,-500.0,0.00015862,2]
[331091596,1720075849749,-500.0,0.00015862,2]
[331091597,1720075849759,-500.0,0.00015862,2]
[331091598,1720075849768,-519.31,0.00015862,2]
[331091599,1720075849777,-500.0,0.00015862,2]
[331091600,1720075849787,-538.94,0.00015862,2]
[331091601,1720075849797,-500.0,0.00015862,2]
[331091602,1720075849806,-500.0,0.00015862,2]
[331091603,1720075849816,-500.0,0.00015862,2]
[331091605,1720075849825,-255.44812004,0.00015862,2]
[331091606,1720075849834,-649.632363,0.00015862,2]
[331091608,1720075849843,-500.0,0.00015862,2]
[331091609,1720075849854,-322.47036302,0.00015862,2]
[331091611,1720075849864,-497.439035,0.00015862,2]
[331091612,1720075849874,-455.37715427,0.00015862,2]
[331091613,1720075850016,-356.35727033,0.0001449,2]
[331091614,1720075850026,-136.78672967,0.00014765,2]
[331091615,1720075850038,-662.04327033,0.00014765,2]
[331091616,1720075850048,-146.83732446,0.00015039,2]
[331091617,1720075850060,-651.99267554,0.00015039,2]
[331091618,1720075850070,-798.83,0.00015313,2]
[331091619,1720075850079,-44.62284573,0.00015862,2]
[331091620,1720075850090,-500.0,0.00015862,2]
[331091621,1720075850101,-500.0,0.00015863,2]
[331091622,1720075850111,-5111.22454214,0.00015863,2]
[331091623,1720075850719,-9198.41820744,0.00045,120]
[331091624,1720075850761,-300.67479093,0.00045,30]
[331091625,1720075850802,-1235.08,0.00045205,120]
[331091626,1720075850842,-25342.22,0.00045479,120]
[331091627,1720075850882,-1507.28,0.00045479,120]
[331091628,1720075850924,-1235.08,0.00045479,120]
[331091629,1720075850968,-983.0,0.000456,120]
[331091630,1720075851008,-983.0,0.000457,120]
[331091631,1720075851049,-1235.08,0.00045753,120]
[331091632,1720075851091,-151.0,0.00045753,120]
[331091633,1720075851133,-1554310.4711987,0.000458,30]
[331091634,1720075851175,-209.0,0.00046,120]
[331091635,1720075851212,-150.0,0.00046,33]
[331091636,1720075851250,-1355.16718222,0.00046,120]
[331091637,1720075851289,-7072.22799913,0.00046,120]
[331091638,1720075851330,-400.0,0.00046,30]
[331091639,1720075851371,-25342.22,0.00046027,120]
[331091640,1720075851412,-1507.28,0.00046027,120]
[331091641,1720075851450,-1235.08,0.00046027,120]
[331091642,1720075851491,-1235.08,0.00046301,120]
[331091643,1720075851532,-14015.53773445,0.00046367,30]
[331091644,1720075851572,-275.18534553,0.00046455,67]
[331091645,1720075851617,-25342.22,0.00046575,120]
[331091646,1720075851659,-1507.28,0.00046575,120]
[331091647,1720075851701,-1235.08,0.00046575,120]
[331091648,1720075851742,-267.8980099,0.00046575,120]
[331091649,1720075851784,-1235.08,0.00046849,120]
[331091650,1720075851827,-151.0,0.00046904,120]
[331091651,1720075851869,-200.0,0.00047,35]
[331091652,1720075851908,-200042.97119325,0.00047,120]
[331091653,1720075851948,-25342.22,0.00047123,120]
[331091654,1720075851989,-1507.28,0.00047123,120]
[331091655,1720075852030,-1235.08,0.00047123,120]
[331091656,1720075852073,-1235.3,0.00047397,120]
[331091657,1720075852116,-25342.22,0.00047671,120]
[331091658,1720075852158,-1507.28,0.00047671,120]
[331091659,1720075852196,-64571.00833845,0.000477,60]
[331091660,1720075855634,-81850.90022637,0.000477,60]
[331091661,1720075855676,-8000.0,0.00047808,30]
[331091662,1720075855723,-200.0,0.00048,120]
[331091663,1720075855769,-2000.0,0.00048,90]
[331091664,1720075855919,-500.0,0.00048,120]
[331091665,1720075855961,-1000000.0,0.00048,120]
[331091666,1720075856003,-1355.16718222,0.00048,120]
[331091667,1720075856046,-1296.95625394,0.00048,120]
[331091668,1720075856086,-5000.0,0.00048,30]
[331091669,1720075856125,-400.0,0.00048,30]
[331091670,1720075856165,-151.0,0.00048055,120]
[331091671,1720075856203,-25342.22,0.00048219,120]
[331091672,1720075856244,-1507.28,0.00048219,120]
[331091673,1720075856286,-275.18534553,0.00048455,75]
[331091674,1720075856326,-8000.0,0.00048493,60]
[331091675,1720075856367,-5488.78678437,0.0004858,30]
[331091676,1720075856406,-25342.22,0.00048767,120]
[331091677,1720075856444,-1507.28,0.00048767,120]
[331091678,1720075856484,-2042.898,0.000488,90]
[331091679,1720075856525,-3305.70924712,0.000488,90]
[331091680,1720075856566,-63000.86291973,0.000488,90]
[331091681,1720075856608,-248898.48029252,0.0004888,120]
[331091682,1720075856650,-3863.35130872,0.0004888,120]
[331091683,1720075856691,-417.20537625,0.00049,120]
[331091684,1720075856732,-5000.0,0.00049,30]
[331091685,1720075856774,-9006.21297743,0.00049,120]
[331091686,1720075856818,-6938.97,0.00049,60]
[331091687,1720075856862,-8000.0,0.00049178,90]
[331091688,1720075856902,-151.0,0.00049205,120]
[331091689,1720075856943,-25342.22,0.00049315,120]
[331091690,1720075856984,-1507.28,0.00049315,120]
[331091691,1720075857027,-318.15818596,0.00049315,31]
[331091692,1720075857069,-25342.22,0.00049863,120]
[331091693,1720075857113,-1507.28,0.00049863,120]
[331091694,1720075857153,-10000.0,0.00049863,120]
[331091695,1720075857192,-41831.1686538,0.000499,30]
[331091696,1720075857233,-154.69833824,0.0005,30]
[331091697,1720075857273,-67710.06915499,0.0005,120]
[331091698,1720075857298,-200.0,0.0005,30]
[331091699,1720075857323,-500.0,0.0005,120]
[331091700,1720075857347,-3115.6,0.0005,120]
[331091701,1720075857376,-200.0,0.0005,120]
[331091702,1720075857401,-150.0,0.0005,41]
[331091703,1720075857425,-1000.03,0.0005,120]
[331091704,1720075857449,-121691.82266848,0.0005,120]
[331091705,1720075857472,-180587.76708433,0.0005,120]
[331091706,1720075861108,-2514.89973569,0.000325,60]
[331091707,1720075861141,-999.0,0.00041095,120]
[331091708,1720075861177,-33732.94026564,0.0005,120]
[331091709,1720075861205,-3999.00235312,0.0005,120]
[331091710,1720075861230,-10000.0,0.0005,30]
[331091711,1720075861256,-100000.0,0.0005,120]
[331091712,1720075861281,-100000.0,0.0005,120]
[331091713,1720075861306,-100000.0,0.0005,120]
[331091714,1720075861330,-5000.0,0.0005,120]
[331091715,1720075861356,-254.59719035,0.0005,120]
[331091716,1720075861384,-893.0893647,0.0005,120]
[331091717,1720075861410,-2879.41651868,0.0005,120]
[331091718,1720075861581,-11477.55045476,0.0005,120]
[331091719,1720075861611,-1501.42349292,0.0005,30]
[331091720,1720075861637,-1133.0,0.0005,120]
[331091721,1720075861662,-20535.1256028,0.0005,30]
[331091722,1720075861689,-11835.11946383,0.0005,30]
[331091723,1720075861714,-427.52224202,0.0005,120]
[331091724,1720075861737,-2003.5,0.0005,120]
[331091725,1720075861763,-366.14514944,0.0005,60]
[331091726,1720075861788,-2643.906518,0.0005,120]
[331091727,1720075861812,-42920.0,0.0005,60]
[331091728,1720075861835,-5384.2392779,0.0005,60]
[331091729,1720075861860,-400.0,0.0005,30]
[331091730,1720075861886,-151.0,0.00050356,120]
[331091731,1720075861911,-25342.22,0.0005041,120]
[331091732,1720075861935,-1507.28,0.0005041,120]
[331091733,1720075861961,-275.18534553,0.00050455,83]
[331091734,1720075861987,-25342.22,0.00050958,120]
[331091735,1720075862011,-1507.28,0.00050958,120]
[331091736,1720075862035,-24667.76,0.00050958,120]
[331091737,1720075862058,-24667.76,0.00050958,120]
[331091738,1720075862082,-24667.76,0.00050958,120]
[331091739,1720075862109,-24667.76,0.00050958,120]
[331091740,1720075862145,-24667.76,0.00050958,120]
[331091741,1720075862172,-24667.76,0.00050958,120]
[331091742,1720075862196,-24667.76,0.00050958,120]
[331091743,1720075862220,-24667.76,0.00050958,120]
[331091744,1720075862245,-24667.76,0.00050958,120]
[331091745,1720075862274,-24667.76,0.00050958,120]
[331091746,1720075862298,-24667.76,0.00050958,120]
[331091747,1720075862322,-24667.76,0.00050958,120]
[331091748,1720075862347,-24667.76,0.00050958,120]
[331091749,1720075862376,-24667.76,0.00050958,120]
[331091750,1720075862401,-24667.76,0.00050958,120]
[331091751,1720075862426,-24667.76,0.00050958,120]
[331091752,1720075862450,-24667.76,0.00050958,120]
[331091753,1720075862474,-24667.76,0.00050958,120]
[331091754,1720075862500,-24667.76,0.00050958,120]
[331091755,1720075862524,-24667.76,0.00050958,120]
[331091756,1720075862548,-24667.76,0.00050958,120]
[331091757,1720075862572,-24667.76,0.00050958,120]
[331091758,1720075862600,-24667.76,0.00050958,120]
[331091759,1720075862627,-24667.87621007,0.00050958,120]
[331091760,1720075862654,-150.0,0.00051,43]
[331091761,1720075862681,-1500.0,0.00051,120]
[331091762,1720075862706,-8337.80896348,0.00051,120]
[331091763,1720075862731,-542.6036576,0.00051,120]
[331091764,1720075862755,-310000.0,0.000512,120]
[331091765,1720075862779,-200000.0,0.0005122,120]
[331091766,1720075862804,-1273.41981226,0.00051355,120]
[331091767,1720075862829,-877.0,0.00051496,120]
[331091768,1720075862854,-25342.22,0.00051506,120]
[331091769,1720075862884,-1507.28,0.00051506,120]
[331091770,1720075862909,-151.0,0.00051507,120]
[331091771,1720075862935,-43718.06112117,0.00052,30]
[331091772,1720075862959,-500.0,0.00052,120]
[331091773,1720075862984,-200.0,0.00052,120]
[331091774,1720075863008,-200.0,0.00052,45]
[331091775,1720075863032,-1802.22000959,0.00052,120]
[331091776,1720075863055,-2508.0,0.00052,120]
[331091777,1720075863080,-999.0,0.00052027,120]
[331091778,1720075863106,-999.0,0.00052027,120]
[331091779,1720075863136,-999.0,0.00052027,120]
[331091780,1720075863161,-999.0,0.00052027,120]
[331091781,1720075863187,-999.0,0.00052027,120]
[331091782,1720075863212,-999.0,0.00052027,120]
[331091783,1720075863238,-999.0,0.00052027,120]
[331091784,1720075863263,-999.0,0.00052027,120]
[331091785,1720075863288,-999.0,0.00052027,120]
[331091786,1720075863314,-999.0,0.00052027,120]
[331091787,1720075863338,-999.0,0.00052027,120]
[331091788,1720075863363,-999.0,0.00052027,120]
[331091789,1720075863393,-999.0,0.00052027,120]
[331091790,1720075863421,-999.0,0.00052027,120]
[331091791,1720075863444,-999.0,0.00052027,120]
[331091792,1720075863468,-999.0,0.00052027,120]
[331091793,1720075863492,-999.0,0.00052027,120]
[331091794,1720075863518,-999.0,0.00052027,120]
[331091795,1720075863541,-1078.85217579,0.00052027,120]
[331091796,1720075863567,-25342.22,0.00052054,120]
[331091797,1720075863607,-1507.28,0.00052054,120]
[331091798,1720075863685,999.0,0.00041369,120]
[331091799,1720075863843,696.7998985,0.00041643,120]
[331091800,1720075869144,500.0,0.00039,30]
[331091801,1720075869225,500.0,0.00052,120]
[331091802,1720075869591,500.0,0.00039,30]
[331091803,1720075869730,500.0,0.00052,120]
[331091804,1720075870015,500.0,0.00039,30]
[331091805,1720075870230,500.0,0.00052,120]
[331091806,1720075870453,628.86710329,0.00039,30]
[331091807,1720075870775,450.11520996,0.00052,120]
[331091808,1720075880063,400.0,0.0005,30]
[331091809,1720075880327,910.64352947,0.000275,30]
[331091810,1720075880494,752.458395,0.00048,30]
[331091811,1720075885987,1206.79320679,0.0004305,30]
[331091812,1720075886314,169.3,0.00050257,60]
[331091813,1720075886476,169.3,0.00049211,60]
[331091814,1720075886610,169.3,0.00048165,60]
[331091815,1720075886759,169.3,0.00047119,60]
[331091816,1720075886920,169.3,0.00046073,31]
[331091817,1720075887062,169.3,0.00045027,31]
[331091818,1720075887212,169.3,0.00043981,31]
[331091819,1720075887365,169.3,0.00042935,31]
[331091820,1720075887510,169.3,0.00041888,31]
[331091821,1720075887985,1971.13452202,0.000425,30]
[331091822,1720075889545,154.85288975,0.0005,30]
[331091823,1720075889715,152.0,0.00050257,60]
[331091824,1720075891271,152.0,0.00043981,31]
[331091825,1720075891331,152.0,0.00046073,31]
[331091826,1720075891385,152.0,0.00041888,31]
[331091827,1720075891433,152.0,0.00045027,31]
[331091828,1720075891481,152.0,0.00048165,60]
[331091829,1720075891528,152.0,0.00049211,60]
[331091830,1720075891593,152.0,0.00042935,31]
[331091831,1720075891652,152.0,0.00047119,60]
[331091832,1720075892356,351.27235617,0.0003,30]
[331091833,1720075896216,234014.37796371,0.00041,30]
[331091835,1720076157688,236.8993387,0.00013218,2]
[331091837,1720076216005,3771.31175907,0.00013218,2]
[331091838,1720076323523,993.00975901,9.999e-05,2]
[331091840,1720076345996,3772.28040147,0.00013218,2]
[331091841,1720076371329,339.64669166,0.0001212,2]
[331091842,1720076399495,1662.06768309,0.0001212,2]
[331091843,1720076424877,155.66183537,9.999e-05,2]
[331091844,1720076438752,155.14328981,9.999e-05,2]
[331091845,1720076440812,303.52200013,9.999e-05,2]
[331091846,1720076441055,692.7872757,0.00013699,2]
[331091850,1720076567344,167.01642106,9.999e-05,2]
[331091857,1720076742131,-174.65941968,0.00014115,2]
[331091858,1720076742151,-84.15532673,0.00014205,2]
[331091860,1720076826284,-174.65941966,0.00014114,2]
[331091861,1720076826303,-1056.34514356,0.00014205,2]
[331091862,1720076826325,-574.22769209,0.00014205,2]
[331091863,1720076826349,-262.5741583,0.00014205,2]
[331091864,1720076826372,-300.0,0.00014205,2]
[331091865,1720076826392,-300.0,0.00014205,2]
[331091866,1720076826412,-164.0300502,0.00014206,2]
[331091868,1720076828116,-151.0,0.00014206,2]
[331091869,1720076831113,-182.47277625,0.00014205,2]
[331091870,1720076831135,-277.43633922,0.00014206,2]
[331091871,1720076831164,-937.50687397,0.00014206,2]
[331091872,1720076842144,-999.30628323,0.00014206,2]
[331091873,1720076848123,-3375.0172426,0.00014206,2]
[331091915,1720077034655,-246.09758232,0.00014203,2]
[331091917,1720077034665,-1694.30241768,0.00014204,2]
[331091919,1720077034677,-14127.577812,0.00014204,2]
[331092271,1720077038904,-16948.07104132,0.00014204,2]
[331092273,1720077038915,-500.0,0.00014205,2]
[331092275,1720077038926,-500.0,0.00014205,2]
[331092276,1720077038936,-1663.66,0.00014205,2]
[331092277,1720077038946,-500.0,0.00014205,2]
[331092278,1720077038956,-208.85286476,0.00014205,2]
[331092279,1720077038966,-9573.7,0.00014205,2]
[331092280,1720077038977,-1043.65,0.00014205,2]
[331092281,1720077038987,-32769.951271,0.00014206,2]
[331092282,1720077038996,-32769.951271,0.00014209,2]
[331092283,1720077039006,-500.0,0.00014209,2]
[331092284,1720077039015,-500.0,0.00014209,2]
[331092285,1720077039024,-302.29984861,0.00014209,2]
[331092286,1720077039034,-500.0,0.00014209,2]
[331092287,1720077039045,-500.0,0.00014209,2]
[331092288,1720077039055,-500.0,0.00014209,2]
[331092289,1720077039066,-500.0,0.00014209,2]
[331092290,1720077039076,-2079.94,0.00014209,2]
[331092291,1720077039086,-500.0,0.00014209,2]
[331092292,1720077039095,-500.0,0.00014209,2]
[331092293,1720077039105,-500.0,0.00014209,2]
[331092294,1720077039116,-503.57475324,0.00014209,2]
[331092295,1720077039125,-500.0,0.00014209,2]
[331092296,1720077039135,-500.0,0.00014209,2]
[331092297,1720077039145,-1387.52,0.00014209,2]
[331092298,1720077039155,-500.0,0.00014209,2]
[331092299,1720077039164,-1663.16,0.00014209,2]
[331092300,1720077039175,-875.46,0.00014209,2]
[331092301,1720077039185,-500.0,0.00014209,2]
[331092302,1720077039195,-500.0,0.00014209,2]
[331092303,1720077039204,-451.19898277,0.00014209,2]
[331092304,1720077039214,-731.92,0.00014209,2]
[331092305,1720077039223,-500.0,0.00014209,2]
[331092306,1720077039233,-502.17873915,0.00014209,2]
[331092307,1720077039242,-3167.48,0.00014209,2]
[331092308,1720077039252,-502.00156353,0.00014209,2]
[331092309,1720077039262,-424.24068936,0.00014209,2]
[331092310,1720077039272,-512.4875995,0.00014209,2]
[331092311,1720077039282,-500.0,0.00014209,2]
[331092312,1720077039292,-500.0,0.00014209,2]
[331092313,1720077039301,-500.0,0.00014209,2]
[331092314,1720077039311,-5941.91,0.00014209,2]
[331092315,1720077039321,-500.0,0.00014209,2]
[331092316,1720077039330,-500.0,0.00014209,2]